[Event "Titled Tuesday Blitz August 16 Early 2022"]
[White "Bashirli, Nail"]
[Black "Koridze, Lile"]
[WhiteFideId "13406809"]
[BlackFideId "13612514"]
[WhiteElo "2333"]
[BlackElo "2050"]
[Result "0-1"]
[Round "02"]
[TimeControl "180+2"]
[Date "2022.08.18"]
[WhiteClock "0:00:00"]
[BlackClock "0:00:00"]

1. e4 {[%clk 0:00:00]}  c5 {[%clk 0:00:00]} 2. Nc3 {[%clk 0:00:00]}  d6 {[%clk 0:00:00]} 3. Nf3 {[%clk 0:00:00]}  Nf6 {[%clk 0:00:00]} 4. e5 {[%clk 0:00:00]}  dxe5 {[%clk 0:00:00]} 5. Nxe5 {[%clk 0:00:00]}  e6 {[%clk 0:00:00]} 6. Bb5+ {[%clk 0:00:00]}  Nbd7 {[%clk 0:00:00]} 7. d4 {[%clk 0:00:00]}  a6 {[%clk 0:00:00]} 8. Bxd7+ {[%clk 0:00:00]}  Bxd7 {[%clk 0:00:00]} 9. O-O {[%clk 0:00:00]}  Qc7 {[%clk 0:00:00]} 10. Re1 {[%clk 0:00:00]}  Rd8 {[%clk 0:00:00]} 11. Bg5 {[%clk 0:00:00]}  Be7 {[%clk 0:00:00]} 12. d5 {[%clk 0:00:00]}  O-O {[%clk 0:00:00]} 13. Qf3 {[%clk 0:00:00]}  Bc8 {[%clk 0:00:00]} 14. Rad1 {[%clk 0:00:00]}  h6 {[%clk 0:00:00]} 15. Bf4 {[%clk 0:00:00]}  Bd6 {[%clk 0:00:00]} 16. dxe6 {[%clk 0:00:00]}  Bxe6 {[%clk 0:00:00]} 17. g3 {[%clk 0:00:00]}  Qb6 {[%clk 0:00:00]} 18. Ng6 {[%clk 0:00:00]}  Bg4 {[%clk 0:00:00]} 19. Rxd6 {[%clk 0:00:00]}  Rxd6 {[%clk 0:00:00]} 20. Ne7+ {[%clk 0:00:00]}  Kh8 {[%clk 0:00:00]} 21. Qe3 {[%clk 0:00:00]}  Re6 {[%clk 0:00:00]} 22. Qd2 {[%clk 0:00:00]}  Rxe1+ {[%clk 0:00:00]} 23. Qxe1 {[%clk 0:00:00]}  Qe6 {[%clk 0:00:00]} 24. Qxe6 {[%clk 0:00:00]}  Bxe6 {[%clk 0:00:00]} 25. Bd6 {[%clk 0:00:00]}  Rd8 {[%clk 0:00:00]} 26. Bxc5 {[%clk 0:00:00]}  Rd2 {[%clk 0:00:00]} 27. Kf1 {[%clk 0:00:00]}  Rxc2 {[%clk 0:00:00]} 28. Ba3 {[%clk 0:00:00]}  Rd2 {[%clk 0:00:00]} 29. Ke1 {[%clk 0:00:00]}  Rd7 {[%clk 0:00:00]} 30. f4 {[%clk 0:00:00]}  Bg4 {[%clk 0:00:00]} 31. Kf2 {[%clk 0:00:00]}  b5 {[%clk 0:00:00]} 32. Ke3 {[%clk 0:00:00]}  Rb7 {[%clk 0:00:00]} 33. Bc5 {[%clk 0:00:00]}  b4 {[%clk 0:00:00]} 34. Ne4 {[%clk 0:00:00]}  Nxe4 {[%clk 0:00:00]} 35. Kxe4 {[%clk 0:00:00]}  Rc7 {[%clk 0:00:00]} 36. Kd4 {[%clk 0:00:00]}  a5 {[%clk 0:00:00]} 37. Nd5 {[%clk 0:00:00]}  Rd7 {[%clk 0:00:00]} 38. Ke5 {[%clk 0:00:00]}  Be6 {[%clk 0:00:00]} 39. Nb6 {[%clk 0:00:00]}  Rc7 {[%clk 0:00:00]} 40. Kd6 {[%clk 0:00:00]}  Rb7 {[%clk 0:00:00]} 41. a3 {[%clk 0:00:00]}  bxa3 {[%clk 0:00:00]} 42. bxa3 {[%clk 0:00:00]}  Rb8 {[%clk 0:00:00]} 43. Kc7 {[%clk 0:00:00]}  Re8 {[%clk 0:00:00]} 44. Bd6 {[%clk 0:00:00]}  a4 {[%clk 0:00:00]} 45. g4 {[%clk 0:00:00]}  Bxg4 {[%clk 0:00:00]} 46. Nd5 {[%clk 0:00:00]}  Re2 {[%clk 0:00:00]} 47. h4 {[%clk 0:00:00]}  Rb2 {[%clk 0:00:00]} 48. Nb6 {[%clk 0:00:00]}  Rc2+ {[%clk 0:00:00]} 49. Kd8 {[%clk 0:00:00]}  Be6 {[%clk 0:00:00]} 50. Ke7 {[%clk 0:00:00]}  Rc6 {[%clk 0:00:00]} 51. Nxa4 {[%clk 0:00:00]}  Rc4 {[%clk 0:00:00]} 52. Nc5 {[%clk 0:00:00]}  Rc3 {[%clk 0:00:00]} 53. Nxe6 {[%clk 0:00:00]}  fxe6 {[%clk 0:00:00]} 54. Kxe6 {[%clk 0:00:00]}  Rd3 {[%clk 0:00:00]} 55. Be5 {[%clk 0:00:00]}  Kg8 {[%clk 0:00:00]} 56. a4 {[%clk 0:00:00]}  Ra3 {[%clk 0:00:00]} 57. Kf5 {[%clk 0:00:00]}  Rxa4 {[%clk 0:00:00]} 58. h5 {[%clk 0:00:00]}  Kf7 {[%clk 0:00:00]} 59. Kg4 {[%clk 0:00:00]}  Ra2 {[%clk 0:00:00]} 60. Bd6 {[%clk 0:00:00]}  Ke6 {[%clk 0:00:00]} 61. Bf8 {[%clk 0:00:00]}  Ra7 {[%clk 0:00:00]} 62. Bc5 {[%clk 0:00:00]}  Rf7 {[%clk 0:00:00]} 63. Bd4 {[%clk 0:00:00]}  Kd5 {[%clk 0:00:00]} 64. Bb2 {[%clk 0:00:00]}  Ke4 {[%clk 0:00:00]} 65. Be5 {[%clk 0:00:00]}  Re7 {[%clk 0:00:00]} 66. Bd6 {[%clk 0:00:00]}  Rb7 {[%clk 0:00:00]} 67. Be5 {[%clk 0:00:00]}  Rb1 {[%clk 0:00:00]} 68. Kh3 {[%clk 0:00:00]}  Rg1 {[%clk 0:00:00]} 69. Kh2 {[%clk 0:00:00]}  Rg4 {[%clk 0:00:00]} 70. Kh3 {[%clk 0:00:00]}  Rxf4 {[%clk 0:00:00]} 71. Bxg7 {[%clk 0:00:00]}  Rf5 {[%clk 0:00:00]} 72. Kh4 {[%clk 0:00:00]}  Rf4+ {[%clk 0:00:00]} 73. Kh3 {[%clk 0:00:00]}  Kf5 {[%clk 0:00:00]} 74. Bxh6 {[%clk 0:00:00]}  Rf1 {[%clk 0:00:00]} 75. Be3 {[%clk 0:00:00]}  Rh1+ {[%clk 0:00:00]} 76. Kg2 {[%clk 0:00:00]}  Rxh5 {[%clk 0:00:00]} 77. Bf2 {[%clk 0:00:00]}  Kg4 {[%clk 0:00:00]} 78. Bg3 {[%clk 0:00:00]}  Rd5 {[%clk 0:00:00]} 79. Bf2 {[%clk 0:00:00]}  Rd2 {[%clk 0:00:00]} 80. Kf1 {[%clk 0:00:00]}  Kf3 {[%clk 0:00:00]} 81. Be1 {[%clk 0:00:00]}  Rd1 {[%clk 0:00:00]} 0-1


[Site "https://www.chess.com"]

[Event "Titled Tuesday Blitz August 16 Early 2022"]
[White "Bharath Subramaniyam H"]
[Black "Balabayeva, Xeniya"]
[WhiteFideId "46634827"]
[BlackFideId "13719688"]
[WhiteElo "2346"]
[BlackElo "1895"]
[Result "0-1"]
[Round "02"]
[TimeControl "180+2"]
[Date "2022.08.18"]
[WhiteClock "0:00:00"]
[BlackClock "0:00:00"]

1. e4 {[%clk 0:00:00]}  c6 {[%clk 0:00:00]} 2. d4 {[%clk 0:00:00]}  d5 {[%clk 0:00:00]} 3. Nc3 {[%clk 0:00:00]}  dxe4 {[%clk 0:00:00]} 4. Nxe4 {[%clk 0:00:00]}  Nf6 {[%clk 0:00:00]} 5. Nxf6+ {[%clk 0:00:00]}  exf6 {[%clk 0:00:00]} 6. c3 {[%clk 0:00:00]}  Bd6 {[%clk 0:00:00]} 7. Bd3 {[%clk 0:00:00]}  O-O {[%clk 0:00:00]} 8. Qc2 {[%clk 0:00:00]}  Re8+ {[%clk 0:00:00]} 9. Ne2 {[%clk 0:00:00]}  h5 {[%clk 0:00:00]} 10. O-O {[%clk 0:00:00]}  h4 {[%clk 0:00:00]} 11. Bf4 {[%clk 0:00:00]}  Bg4 {[%clk 0:00:00]} 12. f3 {[%clk 0:00:00]}  Be6 {[%clk 0:00:00]} 13. Rae1 {[%clk 0:00:00]}  Qc7 {[%clk 0:00:00]} 14. Qd2 {[%clk 0:00:00]}  Nd7 {[%clk 0:00:00]} 15. c4 {[%clk 0:00:00]}  Rad8 {[%clk 0:00:00]} 16. b3 {[%clk 0:00:00]}  Nf8 {[%clk 0:00:00]} 17. Bxd6 {[%clk 0:00:00]}  Qxd6 {[%clk 0:00:00]} 18. f4 {[%clk 0:00:00]}  Bg4 {[%clk 0:00:00]} 19. Rd1 {[%clk 0:00:00]}  Ne6 {[%clk 0:00:00]} 20. d5 {[%clk 0:00:00]}  cxd5 {[%clk 0:00:00]} 21. cxd5 {[%clk 0:00:00]}  Qxd5 {[%clk 0:00:00]} 22. Nc3 {[%clk 0:00:00]}  Qd4+ {[%clk 0:00:00]} 23. Kh1 {[%clk 0:00:00]}  Bxd1 {[%clk 0:00:00]} 24. Rxd1 {[%clk 0:00:00]}  Nxf4 {[%clk 0:00:00]} 0-1


[Site "https://www.chess.com"]

[Event "Titled Tuesday Blitz August 16 Early 2022"]
[White "Bolanos, Fernando"]
[Black "Xu, Yi"]
[WhiteFideId "3304094"]
[BlackFideId "8605564"]
[WhiteElo "2086"]
[BlackElo "2471"]
[Result "0-1"]
[Round "02"]
[TimeControl "180+2"]
[Date "2022.08.18"]
[WhiteClock "0:00:00"]
[BlackClock "0:00:00"]

1. e4 {[%clk 0:00:00]}  c6 {[%clk 0:00:00]} 2. d3 {[%clk 0:00:00]}  d5 {[%clk 0:00:00]} 3. Nf3 {[%clk 0:00:00]}  Bg4 {[%clk 0:00:00]} 4. Nbd2 {[%clk 0:00:00]}  Nd7 {[%clk 0:00:00]} 5. h3 {[%clk 0:00:00]}  Bxf3 {[%clk 0:00:00]} 6. Qxf3 {[%clk 0:00:00]}  e6 {[%clk 0:00:00]} 7. g4 {[%clk 0:00:00]}  Bc5 {[%clk 0:00:00]} 8. Qg2 {[%clk 0:00:00]}  Ne7 {[%clk 0:00:00]} 9. Be2 {[%clk 0:00:00]}  Ng6 {[%clk 0:00:00]} 10. Nb3 {[%clk 0:00:00]}  Bd6 {[%clk 0:00:00]} 11. O-O {[%clk 0:00:00]}  Qc7 {[%clk 0:00:00]} 12. d4 {[%clk 0:00:00]}  Nh4 {[%clk 0:00:00]} 13. Qh1 {[%clk 0:00:00]}  Bf4 {[%clk 0:00:00]} 14. e5 {[%clk 0:00:00]}  g5 {[%clk 0:00:00]} 15. Bxf4 {[%clk 0:00:00]}  gxf4 {[%clk 0:00:00]} 16. f3 {[%clk 0:00:00]}  O-O-O {[%clk 0:00:00]} 17. Qh2 {[%clk 0:00:00]}  Ng6 {[%clk 0:00:00]} 18. c4 {[%clk 0:00:00]}  h5 {[%clk 0:00:00]} 19. Rac1 {[%clk 0:00:00]}  dxc4 {[%clk 0:00:00]} 20. Nd2 {[%clk 0:00:00]}  Ndxe5 {[%clk 0:00:00]} 21. Ne4 {[%clk 0:00:00]}  Rxd4 {[%clk 0:00:00]} 22. Qf2 {[%clk 0:00:00]}  Rhd8 {[%clk 0:00:00]} 23. gxh5 {[%clk 0:00:00]}  Ne7 {[%clk 0:00:00]} 24. Rfd1 {[%clk 0:00:00]}  Nf5 {[%clk 0:00:00]} 25. Rxd4 {[%clk 0:00:00]}  Nxd4 {[%clk 0:00:00]} 26. Kh1 {[%clk 0:00:00]}  Nd3 {[%clk 0:00:00]} 27. Bxd3 {[%clk 0:00:00]}  cxd3 {[%clk 0:00:00]} 28. h6 {[%clk 0:00:00]}  Ne2 {[%clk 0:00:00]} 29. Rd1 {[%clk 0:00:00]}  Qe5 {[%clk 0:00:00]} 30. Qh4 {[%clk 0:00:00]}  Ng3+ {[%clk 0:00:00]} 31. Nxg3 {[%clk 0:00:00]}  fxg3 {[%clk 0:00:00]} 32. h7 {[%clk 0:00:00]}  Qe2 {[%clk 0:00:00]} 33. Qxd8+ {[%clk 0:00:00]}  Kxd8 {[%clk 0:00:00]} 34. h8=Q+ {[%clk 0:00:00]}  Kc7 {[%clk 0:00:00]} 35. Qe5+ {[%clk 0:00:00]}  Qxe5 {[%clk 0:00:00]} 0-1


[Site "https://www.chess.com"]

[Event "Titled Tuesday Blitz August 16 Early 2022"]
[White "Bykhovsky, Anatoly"]
[Black "Atanasov, Anthony"]
[WhiteFideId "2806991"]
[BlackFideId "2623897"]
[WhiteElo "2540"]
[BlackElo "1928"]
[Result "1/2-1/2"]
[Round "02"]
[TimeControl "180+2"]
[Date "2022.08.18"]
[WhiteClock "0:00:00"]
[BlackClock "0:00:00"]

1. Nf3 {[%clk 0:00:00]}  Nf6 {[%clk 0:00:00]} 2. g3 {[%clk 0:00:00]}  d5 {[%clk 0:00:00]} 3. Bg2 {[%clk 0:00:00]}  Bf5 {[%clk 0:00:00]} 4. c4 {[%clk 0:00:00]}  e6 {[%clk 0:00:00]} 5. Qb3 {[%clk 0:00:00]}  Nc6 {[%clk 0:00:00]} 6. cxd5 {[%clk 0:00:00]}  exd5 {[%clk 0:00:00]} 7. O-O {[%clk 0:00:00]}  Rb8 {[%clk 0:00:00]} 8. d3 {[%clk 0:00:00]}  Be7 {[%clk 0:00:00]} 9. Bf4 {[%clk 0:00:00]}  O-O {[%clk 0:00:00]} 10. Nc3 {[%clk 0:00:00]}  h6 {[%clk 0:00:00]} 11. Rac1 {[%clk 0:00:00]}  d4 {[%clk 0:00:00]} 12. Nb5 {[%clk 0:00:00]}  Be6 {[%clk 0:00:00]} 13. Qa4 {[%clk 0:00:00]}  Nd5 {[%clk 0:00:00]} 14. Nbxd4 {[%clk 0:00:00]}  Nxf4 {[%clk 0:00:00]} 15. gxf4 {[%clk 0:00:00]}  Nxd4 {[%clk 0:00:00]} 16. Nxd4 {[%clk 0:00:00]}  Bd7 {[%clk 0:00:00]} 17. Qb3 {[%clk 0:00:00]}  c5 {[%clk 0:00:00]} 18. Nf3 {[%clk 0:00:00]}  Be6 {[%clk 0:00:00]} 19. Qa4 {[%clk 0:00:00]}  b5 {[%clk 0:00:00]} 20. Qc2 {[%clk 0:00:00]}  Qa5 {[%clk 0:00:00]} 21. Ne5 {[%clk 0:00:00]}  Rbc8 {[%clk 0:00:00]} 22. Nc6 {[%clk 0:00:00]}  Qc7 {[%clk 0:00:00]} 23. Nxe7+ {[%clk 0:00:00]}  Qxe7 {[%clk 0:00:00]} 24. a3 {[%clk 0:00:00]}  a5 {[%clk 0:00:00]} 25. Qd2 {[%clk 0:00:00]}  b4 {[%clk 0:00:00]} 26. axb4 {[%clk 0:00:00]}  axb4 {[%clk 0:00:00]} 27. Qe3 {[%clk 0:00:00]}  Qf6 {[%clk 0:00:00]} 28. Qe5 {[%clk 0:00:00]}  c4 {[%clk 0:00:00]} 29. Qxf6 {[%clk 0:00:00]}  gxf6 {[%clk 0:00:00]} 30. dxc4 {[%clk 0:00:00]}  Rxc4 {[%clk 0:00:00]} 31. Rxc4 {[%clk 0:00:00]}  Bxc4 {[%clk 0:00:00]} 32. Bf3 {[%clk 0:00:00]}  Rd8 {[%clk 0:00:00]} 33. Rc1 {[%clk 0:00:00]}  Bb3 {[%clk 0:00:00]} 34. e3 {[%clk 0:00:00]}  Rd2 {[%clk 0:00:00]} 35. Rc8+ {[%clk 0:00:00]}  Kg7 {[%clk 0:00:00]} 36. Rb8 {[%clk 0:00:00]}  Rxb2 {[%clk 0:00:00]} 37. Rxb4 {[%clk 0:00:00]}  f5 {[%clk 0:00:00]} 38. Kg2 {[%clk 0:00:00]}  Kf6 {[%clk 0:00:00]} 39. Rb6+ {[%clk 0:00:00]}  Kg7 {[%clk 0:00:00]} 40. Kg3 {[%clk 0:00:00]}  Rb1 {[%clk 0:00:00]} 41. Bg2 {[%clk 0:00:00]}  f6 {[%clk 0:00:00]} 42. Rb7+ {[%clk 0:00:00]}  Kg6 {[%clk 0:00:00]} 43. h4 {[%clk 0:00:00]}  h5 {[%clk 0:00:00]} 44. Kh2 {[%clk 0:00:00]}  Bc2 {[%clk 0:00:00]} 45. Rxb1 {[%clk 0:00:00]}  Bxb1 {[%clk 0:00:00]} 46. Kg1 {[%clk 0:00:00]}  Bc2 {[%clk 0:00:00]} 47. Kf1 {[%clk 0:00:00]}  Kf7 {[%clk 0:00:00]} 48. Bf3 {[%clk 0:00:00]}  Bd3+ {[%clk 0:00:00]} 49. Ke1 {[%clk 0:00:00]}  Kg6 {[%clk 0:00:00]} 50. Kd2 {[%clk 0:00:00]}  Be4 {[%clk 0:00:00]} 51. Be2 {[%clk 0:00:00]}  Kf7 {[%clk 0:00:00]} 52. Bxh5+ {[%clk 0:00:00]}  Ke6 {[%clk 0:00:00]} 53. Be2 {[%clk 0:00:00]}  Bc6 {[%clk 0:00:00]} 54. Kc3 {[%clk 0:00:00]}  Be8 {[%clk 0:00:00]} 55. Kd4 {[%clk 0:00:00]}  Ke7 {[%clk 0:00:00]} 56. Bd3 {[%clk 0:00:00]}  Bg6 {[%clk 0:00:00]} 57. f3 {[%clk 0:00:00]}  Kd6 {[%clk 0:00:00]} 58. e4 {[%clk 0:00:00]}  fxe4 {[%clk 0:00:00]} 59. fxe4 {[%clk 0:00:00]}  Ke7 {[%clk 0:00:00]} 60. e5 {[%clk 0:00:00]}  Bf7 {[%clk 0:00:00]} 61. Bf5 {[%clk 0:00:00]}  fxe5+ {[%clk 0:00:00]} 62. fxe5 {[%clk 0:00:00]}  Kf8 {[%clk 0:00:00]} 63. Ke3 {[%clk 0:00:00]}  Kg7 {[%clk 0:00:00]} 64. Kf4 {[%clk 0:00:00]}  Bc4 {[%clk 0:00:00]} 65. Kg5 {[%clk 0:00:00]}  Bb3 {[%clk 0:00:00]} 66. h5 {[%clk 0:00:00]}  Bc4 {[%clk 0:00:00]} 67. h6+ {[%clk 0:00:00]}  Kg8 {[%clk 0:00:00]} 68. Kf6 {[%clk 0:00:00]}  Kh8 {[%clk 0:00:00]} 69. Be6 {[%clk 0:00:00]}  Bb5 {[%clk 0:00:00]} 70. Bf5 {[%clk 0:00:00]}  Bc4 {[%clk 0:00:00]} 71. Ke7 {[%clk 0:00:00]}  Bb3 {[%clk 0:00:00]} 72. Kd6 {[%clk 0:00:00]}  Bc4 {[%clk 0:00:00]} 73. Be6 {[%clk 0:00:00]}  Bd3 {[%clk 0:00:00]} 74. Bf7 {[%clk 0:00:00]}  Bf5 {[%clk 0:00:00]} 75. Ke7 {[%clk 0:00:00]}  Kh7 {[%clk 0:00:00]} 76. Kf6 {[%clk 0:00:00]}  Bd7 {[%clk 0:00:00]} 77. Be6 {[%clk 0:00:00]}  Bc6 {[%clk 0:00:00]} 78. Kg5 {[%clk 0:00:00]}  Kh8 {[%clk 0:00:00]} 79. Bf5 {[%clk 0:00:00]}  Bd5 {[%clk 0:00:00]} 80. Kf6 {[%clk 0:00:00]}  Bc4 {[%clk 0:00:00]} 1/2-1/2


[Site "https://www.chess.com"]

[Event "Titled Tuesday Blitz August 16 Early 2022"]
[White "Costachi, Mihnea"]
[Black "D`Arruda, Ricardo D."]
[WhiteFideId "1217518"]
[BlackFideId "100692"]
[WhiteElo "2437"]
[BlackElo "2271"]
[Result "1-0"]
[Round "02"]
[TimeControl "180+2"]
[Date "2022.08.18"]
[WhiteClock "0:00:00"]
[BlackClock "0:00:00"]

1. e4 {[%clk 0:00:00]}  c5 {[%clk 0:00:00]} 2. Nf3 {[%clk 0:00:00]}  Nc6 {[%clk 0:00:00]} 3. b3 {[%clk 0:00:00]}  Nf6 {[%clk 0:00:00]} 4. e5 {[%clk 0:00:00]}  Nd5 {[%clk 0:00:00]} 5. Bb2 {[%clk 0:00:00]}  e6 {[%clk 0:00:00]} 6. c4 {[%clk 0:00:00]}  Nde7 {[%clk 0:00:00]} 7. Be2 {[%clk 0:00:00]}  Nf5 {[%clk 0:00:00]} 8. O-O {[%clk 0:00:00]}  Be7 {[%clk 0:00:00]} 9. Nc3 {[%clk 0:00:00]}  d5 {[%clk 0:00:00]} 10. exd6 {[%clk 0:00:00]}  Bxd6 {[%clk 0:00:00]} 11. Nb5 {[%clk 0:00:00]}  Be7 {[%clk 0:00:00]} 12. d4 {[%clk 0:00:00]}  cxd4 {[%clk 0:00:00]} 13. Nfxd4 {[%clk 0:00:00]}  Ncxd4 {[%clk 0:00:00]} 14. Nxd4 {[%clk 0:00:00]}  Bf6 {[%clk 0:00:00]} 15. Nxf5 {[%clk 0:00:00]}  Bxb2 {[%clk 0:00:00]} 16. Nd6+ {[%clk 0:00:00]}  Ke7 {[%clk 0:00:00]} 17. c5 {[%clk 0:00:00]}  Bxa1 {[%clk 0:00:00]} 18. Qxa1 {[%clk 0:00:00]}  f6 {[%clk 0:00:00]} 19. Rd1 {[%clk 0:00:00]}  Qc7 {[%clk 0:00:00]} 20. b4 {[%clk 0:00:00]}  Bd7 {[%clk 0:00:00]} 21. Qd4 {[%clk 0:00:00]}  e5 {[%clk 0:00:00]} 22. Qh4 {[%clk 0:00:00]}  b6 {[%clk 0:00:00]} 23. Bg4 {[%clk 0:00:00]}  bxc5 {[%clk 0:00:00]} 24. bxc5 {[%clk 0:00:00]}  Rad8 {[%clk 0:00:00]} 25. Rd5 {[%clk 0:00:00]}  Qc6 {[%clk 0:00:00]} 26. Rxe5+ {[%clk 0:00:00]}  Kf8 {[%clk 0:00:00]} 27. Bxd7 {[%clk 0:00:00]}  Qxd7 {[%clk 0:00:00]} 28. Re1 {[%clk 0:00:00]}  h5 {[%clk 0:00:00]} 29. Qc4 {[%clk 0:00:00]}  g6 {[%clk 0:00:00]} 30. Re6 {[%clk 0:00:00]}  Kg7 {[%clk 0:00:00]} 31. Qe4 {[%clk 0:00:00]}  Kh6 {[%clk 0:00:00]} 32. Qf4+ {[%clk 0:00:00]}  Kh7 {[%clk 0:00:00]} 33. Qxf6 {[%clk 0:00:00]}  Rhf8 {[%clk 0:00:00]} 34. Re7+ {[%clk 0:00:00]}  Kh6 {[%clk 0:00:00]} 35. Qg7+ {[%clk 0:00:00]}  Kg5 {[%clk 0:00:00]} 36. Rxd7 {[%clk 0:00:00]} 1-0


[Site "https://www.chess.com"]

[Event "Titled Tuesday Blitz August 16 Early 2022"]
[White "Cramling Bellon, Anna"]
[Black "Sargissyan, Sargis"]
[WhiteFideId "32009232"]
[BlackFideId "13303210"]
[WhiteElo "1905"]
[BlackElo "2102"]
[Result "0-1"]
[Round "02"]
[TimeControl "180+2"]
[Date "2022.08.18"]
[WhiteClock "0:00:00"]
[BlackClock "0:00:00"]

1. d4 {[%clk 0:00:00]}  Nf6 {[%clk 0:00:00]} 2. c4 {[%clk 0:00:00]}  g6 {[%clk 0:00:00]} 3. Nc3 {[%clk 0:00:00]}  d5 {[%clk 0:00:00]} 4. cxd5 {[%clk 0:00:00]}  Nxd5 {[%clk 0:00:00]} 5. e4 {[%clk 0:00:00]}  Nxc3 {[%clk 0:00:00]} 6. bxc3 {[%clk 0:00:00]}  Bg7 {[%clk 0:00:00]} 7. Qa4+ {[%clk 0:00:00]}  Nd7 {[%clk 0:00:00]} 8. Nf3 {[%clk 0:00:00]}  O-O {[%clk 0:00:00]} 9. Bg5 {[%clk 0:00:00]}  h6 {[%clk 0:00:00]} 10. Be3 {[%clk 0:00:00]}  c5 {[%clk 0:00:00]} 11. Rd1 {[%clk 0:00:00]}  cxd4 {[%clk 0:00:00]} 12. cxd4 {[%clk 0:00:00]}  Nb6 {[%clk 0:00:00]} 13. Qa3 {[%clk 0:00:00]}  Bg4 {[%clk 0:00:00]} 14. Be2 {[%clk 0:00:00]}  Bxf3 {[%clk 0:00:00]} 15. Bxf3 {[%clk 0:00:00]}  Nc4 {[%clk 0:00:00]} 16. Qb3 {[%clk 0:00:00]}  Qa5+ {[%clk 0:00:00]} 17. Ke2 {[%clk 0:00:00]}  Nxe3 {[%clk 0:00:00]} 18. fxe3 {[%clk 0:00:00]}  Rac8 {[%clk 0:00:00]} 19. Rc1 {[%clk 0:00:00]}  b6 {[%clk 0:00:00]} 20. e5 {[%clk 0:00:00]}  e6 {[%clk 0:00:00]} 21. Bb7 {[%clk 0:00:00]}  Rb8 {[%clk 0:00:00]} 22. Be4 {[%clk 0:00:00]}  Rfc8 {[%clk 0:00:00]} 23. Qb2 {[%clk 0:00:00]}  Bf8 {[%clk 0:00:00]} 24. Rxc8 {[%clk 0:00:00]}  Rxc8 {[%clk 0:00:00]} 25. Rc1 {[%clk 0:00:00]}  Rxc1 {[%clk 0:00:00]} 26. Qxc1 {[%clk 0:00:00]}  Qxa2+ {[%clk 0:00:00]} 27. Kf1 {[%clk 0:00:00]}  Qa6+ {[%clk 0:00:00]} 28. Kg1 {[%clk 0:00:00]}  Qe2 {[%clk 0:00:00]} 29. Bf3 {[%clk 0:00:00]}  Qd3 {[%clk 0:00:00]} 30. Kf2 {[%clk 0:00:00]}  h5 {[%clk 0:00:00]} 31. Be2 {[%clk 0:00:00]}  Qf5+ {[%clk 0:00:00]} 32. Bf3 {[%clk 0:00:00]}  g5 {[%clk 0:00:00]} 33. e4 {[%clk 0:00:00]}  Qg6 {[%clk 0:00:00]} 34. Qe3 {[%clk 0:00:00]}  g4 {[%clk 0:00:00]} 35. Be2 {[%clk 0:00:00]}  Bh6 {[%clk 0:00:00]} 36. Qd3 {[%clk 0:00:00]}  Qg5 {[%clk 0:00:00]} 37. g3 {[%clk 0:00:00]}  Kg7 {[%clk 0:00:00]} 38. Kg2 {[%clk 0:00:00]}  a5 {[%clk 0:00:00]} 39. h4 {[%clk 0:00:00]}  gxh3+ {[%clk 0:00:00]} 40. Kxh3 {[%clk 0:00:00]}  Qe3 {[%clk 0:00:00]} 41. Qxe3 {[%clk 0:00:00]}  Bxe3 {[%clk 0:00:00]} 42. d5 {[%clk 0:00:00]}  Bd4 {[%clk 0:00:00]} 43. d6 {[%clk 0:00:00]}  Bxe5 {[%clk 0:00:00]} 44. d7 {[%clk 0:00:00]}  Bc7 {[%clk 0:00:00]} 45. Bxh5 {[%clk 0:00:00]}  a4 {[%clk 0:00:00]} 46. Bd1 {[%clk 0:00:00]}  b5 {[%clk 0:00:00]} 47. Bc2 {[%clk 0:00:00]}  Kf8 {[%clk 0:00:00]} 48. Bd3 {[%clk 0:00:00]}  b4 {[%clk 0:00:00]} 49. Bc4 {[%clk 0:00:00]}  Ke7 {[%clk 0:00:00]} 50. Kg4 {[%clk 0:00:00]}  b3 {[%clk 0:00:00]} 51. Kf3 {[%clk 0:00:00]}  b2 {[%clk 0:00:00]} 52. Ba2 {[%clk 0:00:00]}  Kxd7 {[%clk 0:00:00]} 53. Ke3 {[%clk 0:00:00]}  Bb6+ {[%clk 0:00:00]} 54. Kd3 {[%clk 0:00:00]}  Kd6 {[%clk 0:00:00]} 55. g4 {[%clk 0:00:00]}  Ke5 {[%clk 0:00:00]} 0-1


[Site "https://www.chess.com"]

[Event "Titled Tuesday Blitz August 16 Early 2022"]
[White "Cruz Mendez, Jean Marco"]
[Black "Hansen, Eric"]
[WhiteFideId "3526402"]
[BlackFideId "2606771"]
[WhiteElo "2064"]
[BlackElo "2568"]
[Result "0-1"]
[Round "02"]
[TimeControl "180+1"]
[Date "2022.08.16"]
[WhiteClock "0:00:11"]
[BlackClock "0:00:13"]

1. e4 {[%clk 0:02:55]}  c5 {[%clk 0:02:43]} 2. Nf3 {[%clk 0:02:54]}  e6 {[%clk 0:02:41]} 3. Qe2 {[%clk 0:02:54]}  Nc6 {[%clk 0:02:41]} 4. g3 {[%clk 0:02:54]}  e5 {[%clk 0:02:29]} 5. Bg2 {[%clk 0:02:52]}  Nf6 {[%clk 0:02:30]} 6. O-O {[%clk 0:02:52]}  Be7 {[%clk 0:02:31]} 7. Nc3 {[%clk 0:02:50]}  d6 {[%clk 0:02:31]} 8. Nd5 {[%clk 0:02:42]}  O-O {[%clk 0:02:30]} 9. c3 {[%clk 0:02:41]}  Re8 {[%clk 0:02:27]} 10. d3 {[%clk 0:02:37]}  Nxd5 {[%clk 0:02:16]} 11. exd5 {[%clk 0:02:38]}  Nb8 {[%clk 0:02:16]} 12. Re1 {[%clk 0:02:35]}  Nd7 {[%clk 0:02:16]} 13. d4 {[%clk 0:02:30]}  Bf6 {[%clk 0:02:03]} 14. dxe5 {[%clk 0:02:06]}  Nxe5 {[%clk 0:02:00]} 15. Nxe5 {[%clk 0:02:05]}  Rxe5 {[%clk 0:02:00]} 16. Qd1 {[%clk 0:02:03]}  Bg4 {[%clk 0:01:59]} 17. f3 {[%clk 0:01:59]}  Rxe1+ {[%clk 0:01:47]} 18. Qxe1 {[%clk 0:02:00]}  Bd7 {[%clk 0:01:45]} 19. Bf4 {[%clk 0:01:53]}  Qb6 {[%clk 0:01:46]} 20. Qd2 {[%clk 0:01:49]}  Re8 {[%clk 0:01:46]} 21. Be3 {[%clk 0:01:29]}  Qa6 {[%clk 0:01:33]} 22. a3 {[%clk 0:01:19]}  Qc4 {[%clk 0:01:33]} 23. Re1 {[%clk 0:01:16]}  h6 {[%clk 0:01:32]} 24. Bf2 {[%clk 0:01:10]}  Rxe1+ {[%clk 0:01:20]} 25. Bxe1 {[%clk 0:01:11]}  b5 {[%clk 0:01:20]} 26. Qd1 {[%clk 0:00:59]}  Qa2 {[%clk 0:01:11]} 27. Qd2 {[%clk 0:00:56]}  a5 {[%clk 0:01:09]} 28. f4 {[%clk 0:00:49]}  Bf5 {[%clk 0:01:03]} 29. h3 {[%clk 0:00:44]}  h5 {[%clk 0:00:58]} 30. Kh2 {[%clk 0:00:43]}  Qb1 {[%clk 0:00:54]} 31. b4 {[%clk 0:00:24]}  cxb4 {[%clk 0:00:48]} 32. cxb4 {[%clk 0:00:24]}  a4 {[%clk 0:00:48]} 33. Qe3 {[%clk 0:00:22]}  Qb2 {[%clk 0:00:29]} 34. Qe8+ {[%clk 0:00:20]}  Kh7 {[%clk 0:00:30]} 35. Qxf7 {[%clk 0:00:20]}  Bg6 {[%clk 0:00:24]} 36. Qe6 {[%clk 0:00:18]}  Qc2 {[%clk 0:00:21]} 37. g4 {[%clk 0:00:18]}  hxg4 {[%clk 0:00:18]} 38. hxg4 {[%clk 0:00:19]}  Bd3 {[%clk 0:00:18]} 39. g5 {[%clk 0:00:14]}  Bd4 {[%clk 0:00:16]} 40. f5 {[%clk 0:00:13]}  Bxf5 {[%clk 0:00:13]} 41. Qxd6 {[%clk 0:00:11]}  Be4 {[%clk 0:00:13]} 42. Qg3 {[%clk 0:00:11]}  Be5 {[%clk 0:00:13]} 0-1


[Site "https://www.chess.com"]